fUSD/lending_fUSD_20250404
["ID","MTS","AMOUNT","RATE_DAILY","PERIOD"]
[357125285,1743769750189,-500.77865805,0.0004799,120]
[357125286,1743769750211,-400.0,0.00048,120]
[357125287,1743769750232,-500.0,0.00048,14]
[357125288,1743769750253,-169.83,0.00048,120]
[357125289,1743769750446,-150.0,0.00048,120]
[357125290,1743769750468,-150.0,0.00048014,2]
[357125291,1743769750490,-195.46,0.00048067,5]
[357125292,1743769750511,-163.94,0.00048208,120]
[357125293,1743769750538,-172.60354274,0.00048399,28]
[357125294,1743769750559,-446.49,0.00048491,2]
[357125297,1743769750580,-2589.49314428,0.00048492,4]
[357125299,1743769750603,-198.67,0.00048499,120]
[357125300,1743769750624,-217.69455857,0.000485,120]
[357125303,1743769750644,-873.02155861,0.00048502,2]
[357125308,1743769767085,-16815.49108339,0.00048502,2]
[357125338,1743769831960,-912.70804093,0.0003586,2]
[357125340,1743769831971,-462.78092388,0.0003586,2]
[357125342,1743769831982,-1641.49,0.00048488,2]
[357125344,1743769831993,-754.13710214,0.00048502,2]
[357125346,1743769832201,-2897.92449487,0.00048502,2]
[357125347,1743769832324,-749.99999863,0.00048502,2]
[357125381,1743769838979,-893.94766923,0.00048502,2]
[357125382,1743769838991,-915.47809313,0.00048502,2]
[357125384,1743769839001,-1000.0,0.00048527,2]
[357125385,1743769839010,-150.0,0.00048649,7]
[357125387,1743769839020,-153.92,0.00048748,2]
[357125388,1743769839030,-153.92,0.00048775,2]
[357125389,1743769839040,-155.34,0.00048781,2]
[357125390,1743769839049,-153.92,0.00048802,2]
[357125391,1743769839059,-302.55,0.0004882,2]
[357125392,1743769839069,-234.67680485,0.0004882,85]
[357125393,1743769839079,-153.92,0.00048829,2]
[357125394,1743769839088,-384.26,0.0004884,2]
[357125395,1743769839097,-153.92,0.00048857,2]
[357125396,1743769839107,-1109.85590202,0.00048874,4]
[357125397,1743769839119,-1479.63724226,0.00048874,4]
[357125398,1743769839129,-153.92,0.00048884,2]
[357125399,1743769839139,-427.581,0.00048884,85]
[357125400,1743769839148,-153.92,0.00048911,2]
[357125401,1743769839158,-153.92,0.00048938,2]
[357125402,1743769839171,-153.92,0.00048965,2]
[357125403,1743769839180,-50.92043777,0.00048992,2]
[357125404,1743769839192,-102.99956223,0.00048992,2]
[357125405,1743769839202,-1000.0,0.00049,60]
[357125406,1743769839212,-500.0,0.00049,120]
[357125407,1743769839221,-179.10043777,0.00049,14]
[357125408,1743769839232,-353.54956223,0.00049,14]
[357125409,1743769839243,-339.08083777,0.00049077,120]
[357125410,1743769839254,-96.4405939,0.00049077,120]
[357125411,1743769839264,-371.0,0.0004915,70]
[357125412,1743769839274,-452.12,0.00049188,2]
[357125413,1743769839283,-2589.49314428,0.00049257,4]
[357125414,1743769839294,-2589.49314428,0.00049305,4]
[357125415,1743769839304,-421.86540039,0.00049315,120]
[357125416,1743769839314,-500.0,0.00049315,120]
[357125417,1743769839324,-500.0,0.00049315,120]
[357125418,1743769839333,-1370.43981715,0.00049315,120]
[357125419,1743769839346,-860.32018285,0.00049315,120]
[357125420,1743769839356,-156.43278745,0.00049315,120]
[357125421,1743769839367,-343.56721255,0.00049315,120]
[357125422,1743769839377,-819.5327875,0.00049315,120]
[357125428,1743769839530,-759.1600005,0.00049315,120]
[357125429,1743769839543,-726.927212,0.00049315,120]
[357125430,1743769839559,-500.0,0.00049315,120]
[357125431,1743769839570,-500.0,0.00049315,120]
[357125432,1743769839581,-581.39874201,0.00049315,120]
[357125433,1743769839593,-500.0,0.00049315,120]
[357125434,1743769839604,-500.0,0.00049315,120]
[357125435,1743769839615,-1030.83,0.00049315,120]
[357125436,1743769839627,-500.0,0.00049315,120]
[357125437,1743769839639,-539.35020124,0.00049315,120]
[357125438,1743769839651,-550.68505654,0.00049315,120]
[357125439,1743769839665,-633.40319568,0.00049315,120]
[357125440,1743769839678,-500.0,0.00049315,120]
[357125441,1743769839689,-541.67337254,0.00049315,120]
[357125442,1743769839700,-170.85942979,0.00049315,120]
[357125444,1743769839711,-500.0,0.00049315,120]
[357125445,1743769839722,-500.0,0.00049315,120]
[357125446,1743769839732,-511.44,0.00049315,120]
[357125447,1743769839742,-898.17,0.00049315,120]
[357125448,1743769839752,-500.0,0.00049315,120]
[357125449,1743769839762,-605.082694,0.00049315,120]
[357125450,1743769839772,-500.0,0.00049315,120]
[357125451,1743769839782,-500.0,0.00049315,120]
[357125452,1743769839793,-500.0,0.00049315,2]
[357125453,1743769839803,-500.0,0.00049315,120]
[357125454,1743769839813,-615.65838917,0.00049315,120]
[357125455,1743769839825,-500.0,0.00049315,120]
[357125456,1743769839835,-500.0,0.00049315,2]
[357125458,1743769839844,-500.0,0.00049315,120]
[357125459,1743769839855,-500.0,0.00049315,120]
[357125460,1743769839865,-500.0,0.00049315,2]
[357125461,1743769839875,-500.0,0.00049315,120]
[357125462,1743769839885,-529.37,0.00049315,120]
[357125463,1743769839895,-500.0,0.00049315,120]
[357125464,1743769839905,-511.75,0.00049315,120]
[357125466,1743769839919,-500.0,0.00049315,120]
[357125468,1743769839929,-320.09363595,0.00049315,120]
[357125469,1743769839939,-500.0,0.00049315,120]
[357125470,1743769839949,-500.0,0.00049315,120]
[357125471,1743769839959,-500.0,0.00049315,120]
[357125472,1743769839969,-543.84345405,0.00049315,2]
[357125474,1743769839979,-791.12,0.00049315,120]
[357125476,1743769839988,-200.0,0.00049338,7]
[357125477,1743769839998,-185.44909737,0.00049589,120]
[357125478,1743769840008,-500.0,0.00049589,120]
[357125479,1743769840020,-2230.76,0.00049589,120]
[357125480,1743769840031,-500.0,0.00049589,120]
[357125481,1743769840042,-2305.62,0.00049589,120]
[357125482,1743769840053,-500.0,0.00049589,120]
[357125483,1743769840064,-500.0,0.00049589,120]
[357125484,1743769840076,-500.0,0.00049589,120]
[357125485,1743769840087,-500.0,0.00049589,120]
[357125486,1743769840098,-1030.83,0.00049589,120]
[357125487,1743769840109,-434.04939212,0.00049589,120]
[357125488,1743769840120,-500.0,0.00049589,120]
[357125489,1743769840132,-500.0,0.00049589,120]
[357125490,1743769840143,-500.0,0.00049589,120]
[357125491,1743769840155,-511.44,0.00049589,120]
[357125492,1743769840175,-898.17,0.00049589,120]
[357125493,1743769840186,-500.0,0.00049589,120]
[357125494,1743769840197,-605.082694,0.00049589,120]
[357125495,1743769840208,-500.0,0.00049589,120]
[357125496,1743769840218,-500.0,0.00049589,120]
[357125497,1743769840230,-109.98999677,0.00049589,2]
[357125498,1743769840244,-390.01000323,0.00049589,2]
[357125499,1743769840255,-500.0,0.00049589,120]
[357125500,1743769840267,-500.0,0.00049589,120]
[357125501,1743769840278,-500.0,0.00049589,2]
[357125502,1743769840288,-236.87863851,0.00049589,120]
[357125503,1743769840299,-500.0,0.00049589,120]
[357125504,1743769840310,-500.0,0.00049589,2]
[357125505,1743769840320,-500.0,0.00049589,120]
[357125506,1743769840330,-529.37,0.00049589,120]
[357125507,1743769840341,-500.0,0.00049589,120]
[357125508,1743769840356,-511.75,0.00049589,120]
[357125509,1743769840370,-500.0,0.00049589,120]
[357125510,1743769840380,-418.62659654,0.00049589,120]
[357125511,1743769840390,-791.12,0.00049589,120]
[357125512,1743769840401,-200.0,0.000497,18]
[357125513,1743769840415,-310.23022467,0.000498,18]
[357125514,1743769840426,-500.0,0.000498,18]
[357125515,1743769840436,-909.33494017,0.00049839,4]
[357125516,1743769840449,-604.4033095,0.00049839,4]
[357125517,1743769840470,-1075.75489461,0.00049839,4]
[357125518,1743769840480,-2589.49314428,0.00049848,4]
[357125519,1743769840491,-810.80239504,0.00049849,15]
[357125520,1743769840501,-1213.19186939,0.00049849,22]
[357125521,1743769840511,-2589.49314428,0.00049849,4]
[357125522,1743769840520,-1178.6189734,0.0004985,120]
[357125523,1743769840530,-500.0,0.00049858,120]
[357125524,1743769840540,-1236.7236,0.00049858,2]
[357125525,1743769840555,-892.03238409,0.00049858,2]
[357125526,1743769840570,-1967.41000002,0.00049858,2]
[357125527,1743769840585,-403.87511589,0.00049858,2]
[357125528,1743769840598,-152.29444619,0.00049859,26]
[357125529,1743769840609,-1064.70819992,0.00049859,2]
[357125530,1743769840625,-207.25770008,0.00049859,2]
[357125531,1743769840636,-378.47319264,0.00049863,120]
[357125533,1743769840647,-1704.42910728,0.00049863,120]
[357125534,1743769840666,-476.03,0.00049863,120]
[357125535,1743769840682,-50.30089272,0.00049863,120]
[357125536,1743769840693,-393.69910728,0.00049863,120]
[357125537,1743769840709,-16.85934453,0.00049863,120]
[357125538,1743769840721,-1645.54065547,0.00049863,120]
[357125539,1743769840735,-660.07934453,0.00049863,120]
[357125540,1743769840746,-325.31360073,0.00049863,120]
[357125541,1743769840757,-500.0,0.00049863,120]
[357125542,1743769840767,-500.0,0.00049863,120]
[357125543,1743769840779,-500.0,0.00049863,120]
[357125544,1743769840789,-1030.83,0.00049863,120]
[357125545,1743769840799,-407.87431636,0.00049863,120]
[357125546,1743769840809,-500.0,0.00049863,120]
[357125547,1743769840819,-500.0,0.00049863,120]
[357125548,1743769840829,-511.44,0.00049863,120]
[357125549,1743769840838,-898.17,0.00049863,120]
[357125550,1743769840848,-500.0,0.00049863,120]
[357125551,1743769840858,-605.082694,0.00049863,120]
[357125552,1743769840868,-500.0,0.00049863,120]
[357125553,1743769840878,-500.0,0.00049863,120]
[357125554,1743769840887,-500.0,0.00049863,2]
[357125555,1743769840897,-500.0,0.00049863,120]
[357125556,1743769840907,-500.0,0.00049863,120]
[357125557,1743769840922,-500.0,0.00049863,2]
[357125558,1743769840932,-400.59639323,0.00049863,120]
[357125559,1743769840941,-500.0,0.00049863,2]
[357125560,1743769840953,-500.0,0.00049863,120]
[357125561,1743769840963,-529.37,0.00049863,120]
[357125562,1743769840972,-500.0,0.00049863,120]
[357125563,1743769840982,-511.75,0.00049863,120]
[357125564,1743769840992,-500.0,0.00049863,120]
[357125565,1743769841001,-791.12,0.00049863,120]
[357125566,1743769841011,-318.14036316,0.0004987,28]
[357125567,1743769841028,-182.59120182,0.00049878,38]
[357125568,1743769841042,-318.14036314,0.00049885,28]
[357125569,1743769841053,-150.0,0.00049888,120]
[357125570,1743769841063,-2589.49314428,0.0004989,4]
[357125571,1743769841073,-5672.80446675,0.000499,120]
[357125572,1743769841085,-800.0,0.000499,18]
[357125573,1743769841095,-318.14036314,0.000499,28]
[357125574,1743769841105,-150.0,0.0004991,7]
[357125575,1743769841115,-500.0,0.00049937,120]
[357125576,1743769841125,-500.0,0.00049937,120]
[357125577,1743769841135,-500.0,0.00049937,120]
[357125578,1743769841145,-500.0,0.00049937,120]
[357125579,1743769841154,-500.0,0.00049937,120]
[357125580,1743769841168,-500.0,0.00049937,120]
[357125581,1743769841179,-502.97546934,0.00049937,120]
[357125582,1743769841189,-500.0,0.00049937,120]
[357125583,1743769841198,-500.0,0.00049937,120]
[357125584,1743769841209,-385.6576754,0.00049937,120]
[357125585,1743769841227,-114.3423246,0.00049937,120]
[357125586,1743769841238,-500.0,0.00049937,120]
[357125587,1743769841248,-99.46295659,0.00049937,120]
[357125588,1743769841261,-400.53704341,0.00049937,120]
[357125589,1743769841270,-500.0,0.00049937,120]
[357125590,1743769841280,-7466.84296659,0.00049938,4]
[357125591,1743769841318,-411.06,0.00049938,4]
[357125592,1743769841330,-28375.00105331,0.00049938,4]
[357125593,1743769841340,-25894.9314428,0.00049938,4]
[357125594,1743769841350,-366.06,0.00049938,2]
[357125595,1743769841360,-18126.45201,0.00049939,4]
[357125596,1743769841369,-5144.60010587,0.00049947,4]
[357125597,1743769841382,-260.58,0.00049947,4]
[357125598,1743769841396,-639.88925001,0.00049947,4]
[357125599,1743769841408,-563.31326908,0.00049947,4]
[357125600,1743769841430,-428.61941707,0.00049947,4]
[357125601,1743769841465,-686.36822299,0.00049947,4]
[357125602,1743769841597,-485.61249635,0.00049315,2]
[357125603,1743769841609,-14.38750365,0.00049315,2]
[357125604,1743769841619,-240.53556848,0.00049947,4]
[357125605,1743769841632,-828.255,0.00049947,4]
[357125621,1743769843644,-118.36971646,0.00049589,2]
[357125624,1743769843691,-381.63028354,0.00049589,2]
[357125625,1743769843700,-256.91971646,0.00049863,2]
[357125626,1743769843728,-127.10656149,0.00049863,2]
[357125627,1743769843739,-115.97372205,0.00049863,2]
[357125628,1743769843749,-714.03215274,0.00049947,4]
[357125656,1743769846176,-500.0,0.00049315,120]
[357125657,1743769846186,-500.0,0.00049589,120]
[357125658,1743769846196,-1698.14345082,0.00049847,2]
[357125659,1743769846279,-647.57474918,0.00049847,2]
[357125660,1743769846288,-500.0,0.00049863,120]
[357125661,1743769846298,-151.0,0.00049938,120]
[357125662,1743769846307,-151.0,0.00049939,120]
[357125663,1743769846318,-14485.88302866,0.00049947,4]
[357125664,1743769846327,-500.0,0.00049947,120]
[357125665,1743769846336,-500.0,0.00049947,120]
[357125666,1743769846346,-500.0,0.00049947,120]
[357125667,1743769846355,-500.0,0.00049947,120]
[357125668,1743769846365,-500.0,0.00049947,120]
[357125669,1743769846375,-500.0,0.00049947,120]
[357125670,1743769846385,-506.34277351,0.00049947,120]
[357125671,1743769846395,-517.79031508,0.00049947,120]
[357125672,1743769846405,-514.650311,0.00049947,120]
[357125673,1743769846418,-500.0,0.00049947,120]
[357125674,1743769846427,-525.341625,0.00049947,120]
[357125675,1743769846437,-500.0,0.00049947,120]
[357125676,1743769846446,-505.87811468,0.00049947,120]
[357125677,1743769846455,-516.16283049,0.00049947,120]
[357125678,1743769846465,-500.79087407,0.00049947,120]
[357125679,1743769846475,-511.78205865,0.00049947,120]
[357125680,1743769846484,-500.0,0.00049947,120]
[357125681,1743769846494,-514.05378107,0.00049947,120]
[357125682,1743769846503,-509.71989143,0.00049947,120]
[357125683,1743769846512,-500.0,0.00049947,120]
[357125684,1743769846522,-511.11290458,0.00049947,120]
[357125685,1743769846531,-530.45531995,0.00049947,120]
[357125686,1743769846541,-506.51171224,0.00049947,120]
[357125687,1743769846554,-5331.57244776,0.00049947,4]
[357125688,1743769846564,-151.0,0.00049948,120]
[357125689,1743769846574,-151.0,0.00049948,120]
[357125690,1743769846584,-151.0,0.00049948,120]
[357125691,1743769846595,-7837.50452851,0.00049948,4]
[357125692,1743769846608,-26817.71638189,0.00049948,4]
[357125693,1743769846618,-26657.8622388,0.00049948,4]
[357125694,1743769846628,-7997.35867164,0.00049949,4]
[357125695,1743769846639,-151.888754,0.00049949,120]
[357125696,1743769846649,-151.0,0.00049949,120]
[357125697,1743769846658,-3971.11211884,0.00049949,4]
[357125700,1743769846682,-4026.2465528,0.00049949,4]
[357125702,1743769846692,-1544.20798688,0.00049955,120]
[357125703,1743769846756,-500.0,0.00049315,120]
[357125704,1743769846766,-3455.79201312,0.00049955,120]
[357125705,1743769846776,-265.84737931,0.00049957,61]
[357125706,1743769846785,-836.95569995,0.00049957,61]
[357125707,1743769846796,-33276.5083709,0.00049957,61]
[357125708,1743769846807,-500.0,0.00049957,120]
[357125709,1743769846817,-500.0,0.00049957,120]
[357125710,1743769846827,-1026.47,0.00049957,120]
[357125711,1743769846836,-173.43246538,0.00049957,120]
[357125712,1743769846846,-391.44017559,0.00049957,120]
[357125713,1743769846855,-500.0,0.00049957,120]
[357125714,1743769846865,-500.0,0.00049957,120]
[357125715,1743769846875,-500.0,0.00049957,120]
[357125716,1743769846885,-500.0,0.00049957,120]
[357125717,1743769846895,-561.86,0.00049957,120]
[357125718,1743769846905,-500.0,0.00049957,120]
[357125719,1743769846914,-500.0,0.00049957,120]
[357125720,1743769846928,-500.0,0.00049957,120]
[357125721,1743769846938,-500.0,0.00049957,30]
[357125722,1743769846948,-500.0,0.00049957,120]
[357125723,1743769846958,-518.70210861,0.00049957,120]
[357125724,1743769846968,-519.62550078,0.00049957,120]
[357125725,1743769846978,-500.0,0.00049957,120]
[357125726,1743769846988,-514.08685525,0.00049957,120]
[357125727,1743769846997,-500.0,0.00049957,120]
[357125728,1743769847007,-512.30996005,0.00049957,120]
[357125729,1743769847016,-511.92478326,0.00049957,120]
[357125730,1743769847026,-535.82132226,0.00049957,120]
[357125731,1743769847035,-500.0,0.00049957,120]
[357125732,1743769847045,-500.0,0.00049957,120]
[357125733,1743769847055,-31.17748315,0.00049957,120]
[357125735,1743770841100,-170.09,0.00026849,2]
[357125736,1743770841122,-38.16279791,0.00032646,2]
[357125737,1743770843095,-131.92720209,0.00032646,2]
[357125738,1743770843118,-27.8247849,0.00038443,2]
[357125739,1743770845410,-142.2652151,0.00038443,2]
[357125740,1743770845434,-250.0,0.00044239,5]
[357125741,1743770845457,-170.09,0.00044239,2]
[357125742,1743770845484,-150.0,0.0004633,2]
[357125743,1743770845507,-150.0,0.00046588,7]
[357125744,1743770845529,-150.0,0.0004669,7]
[357125745,1743770845551,-243.77228399,0.00046816,2]
[357125746,1743770845572,-243.77228397,0.00046871,2]
[357125747,1743770845594,-348.29,0.00046916,3]
[357125748,1743770845616,-483.11,0.00046916,2]
[357125749,1743770845638,-150.0,0.00046971,7]
[357125750,1743770845661,-500.00000001,0.000475,120]
[357125751,1743770845682,-150.0,0.00047942,2]
[357125752,1743770845704,-500.0,0.0004799,120]
[357125753,1743770845726,-663.17786735,0.00048,2]
[357125754,1743770845749,-172.99347055,0.00048067,120]
[357125755,1743770845772,-150.07,0.00048145,2]
[357125756,1743770845797,-150.0,0.00048167,7]
[357125757,1743770845821,-223.24,0.00048187,2]
[357125758,1743770845844,-150.07,0.00048265,2]
[357125759,1743770845865,-2000.0,0.00048291,5]
[357125760,1743770845889,-1000.0,0.00048306,2]
[357125761,1743770845912,-155.34,0.00048323,2]
[357125762,1743770845935,-150.07,0.00048386,2]
[357125763,1743770845956,-535.6,0.00048452,2]
[357125764,1743770845982,-200.0,0.00048452,2]
[357125765,1743770846004,-151.0,0.00048469,2]
[357125766,1743770846024,-500.0,0.00048469,2]
[357125767,1743770846045,-7032.12229497,0.00048499,2]
[357125770,1743770945129,-250.0,0.00027,2]
[357125771,1743770945148,-300.0,0.00029,2]
[357125772,1743770945168,-350.0,0.00031,2]
[357125773,1743770945189,-400.0,0.00033,2]
[357125774,1743770945208,-450.0,0.00035,2]
[357125775,1743770947100,-4414.708116,0.00045,2]
[357125776,1743770950082,-58010.83442,0.00045,2]
[357125777,1743770951066,-30301.21682,0.00045,2]
[357125778,1743770952101,-42836.26844,0.00045,2]
[357125779,1743770964112,-112998.1846,0.00045,2]
[357125780,1743770967071,-132022.8756,0.00045,2]
[357125781,1743770968246,-29818.49234,0.00045,2]
[357125782,1743770970070,-291386.977,0.00045,2]
[357125783,1743770971090,-606.73937829,0.00045,2]
[357125787,1743771004834,501.47327578,0.00044973,10]
[357125791,1743771032360,-172.99347054,0.00048399,120]
[357125792,1743771032370,-187.1297714,0.00048499,2]
[357125793,1743771032478,-16680.74793363,0.00048499,2]
[357125794,1743771032488,-401.497,0.00048554,83]
[357125795,1743771032498,-177.246,0.00048554,83]
[357125796,1743771032508,-198.74,0.00048585,2]
[357125797,1743771032518,-150.0,0.00048636,7]
[357125798,1743771032528,-386.38,0.00048647,2]
[357125799,1743771032538,-346.27,0.00048654,2]
[357125800,1743771032548,-150.0,0.00048663,7]
[357125801,1743771032557,-163.47,0.00048665,120]
[357125802,1743771032567,-377.87,0.00048847,2]
[357125803,1743771032576,-250.0,0.00048912,120]
[357125804,1743771032586,-520.0,0.00049,120]
[357125805,1743771032595,-576.0788265,0.00049017,2]
[357125806,1743771032605,-150.0,0.00049022,7]
[357125807,1743771032615,-150.0,0.00049127,7]
[357125808,1743771032624,-483.11,0.0004918,2]
[357125809,1743771032634,-500.61632479,0.000493,30]
[357125810,1743771032648,-156.089004,0.00049315,120]
[357125811,1743771032658,-150.135759,0.00049315,120]
[357125813,1743771032667,-150.938349,0.00049315,120]
[357125815,1743771032676,-500.0,0.00049315,120]
[357125817,1743771032685,-500.0,0.00049315,120]
[357125819,1743771032695,-500.0,0.00049315,120]
[357125821,1743771032705,-519.12910643,0.00049315,120]
[357125823,1743771032714,-540.49584244,0.00049315,120]
[357125825,1743771032723,-560.52,0.00049315,120]
[357125827,1743771032733,-500.0,0.00049315,120]
[357125829,1743771032742,-500.0,0.00049315,120]
[357125831,1743771032752,-500.0,0.00049315,120]
[357125833,1743771032762,-500.0,0.00049315,120]
[357125835,1743771032771,-500.0,0.00049315,120]
[357125837,1743771032782,-500.0,0.00049315,120]
[357125841,1743771032791,-500.0,0.00049315,120]
[357125845,1743771032800,-500.0,0.00049315,120]
[357125849,1743771032810,-500.0,0.00049315,120]
[357125852,1743771032820,-500.0,0.00049315,120]
[357125855,1743771032830,-500.0,0.00049315,120]
[357125859,1743771032839,-564.85709569,0.00049315,120]
[357125861,1743771032848,-526.76692547,0.00049315,120]
[357125863,1743771032858,-500.0,0.00049315,120]
[357125865,1743771032868,-534.81406755,0.00049315,120]
[357125876,1743771032877,-500.0,0.00049315,120]
[357125879,1743771033010,-500.0,0.00049315,120]
[357125881,1743771033020,-500.0,0.00049315,120]
[357125883,1743771033029,-500.0,0.00049315,120]
[357125885,1743771033039,-548.10435243,0.00049315,120]
[357125887,1743771033049,-537.09,0.00049315,120]
[357125889,1743771033060,-561.41458118,0.00049315,120]
[357125890,1743771033069,-500.0,0.00049315,120]
[357125891,1743771033079,-668.1,0.00049315,120]
[357125892,1743771033089,-500.0,0.00049315,120]
[357125893,1743771033099,-500.0,0.00049315,120]
[357125894,1743771033108,-500.0,0.00049315,120]
[357125895,1743771033118,-500.0,0.00049315,2]
[357125896,1743771033128,-500.0,0.00049315,2]
[357125897,1743771033137,-500.0,0.00049315,120]
[357125898,1743771033149,-1893.9511,0.0004936,2]
[357125899,1743771033158,-7564.22823636,0.0004946,2]
[357125900,1743771033168,-150.0,0.00049466,7]
[357125901,1743771033179,-150.0,0.00049504,7]
[357125902,1743771033188,-156.089004,0.00049589,120]
[357125903,1743771033198,-196.91217668,0.00049589,120]
[357125904,1743771033208,-500.0,0.00049589,120]
[357125905,1743771033218,-500.0,0.00049589,120]
[357125906,1743771033227,-560.52,0.00049589,120]
[357125907,1743771033237,-500.0,0.00049589,120]
[357125908,1743771033247,-500.0,0.00049589,120]
[357125909,1743771033256,-500.0,0.00049589,120]
[357125910,1743771033265,-500.0,0.00049589,120]
[357125911,1743771033275,-500.0,0.00049589,120]
[357125912,1743771033286,-500.0,0.00049589,120]
[357125913,1743771033296,-243.55365519,0.00049589,120]
[357125914,1743771033307,-500.0,0.00049589,120]
[357125915,1743771033317,-526.81609447,0.00049589,120]
[357125916,1743771033328,-500.0,0.00049589,120]
[357125917,1743771033339,-500.0,0.00049589,120]
[357125918,1743771033349,-500.0,0.00049589,120]
[357125919,1743771033360,-500.0,0.00049589,120]
[357125920,1743771033371,-500.0,0.00049589,120]
[357125921,1743771033381,-500.0,0.00049589,120]
[357125922,1743771033394,-537.09,0.00049589,120]
[357125923,1743771033405,-500.0,0.00049589,120]
[357125924,1743771033414,-668.1,0.00049589,120]
[357125925,1743771033425,-500.0,0.00049589,120]
[357125926,1743771033435,-500.0,0.00049589,120]
[357125927,1743771033445,-500.0,0.00049589,120]
[357125928,1743771033455,-500.0,0.00049589,2]
[357125929,1743771033465,-500.0,0.00049589,2]
[357125930,1743771033475,-500.0,0.00049589,120]
[357125931,1743771033485,-150.0,0.00049648,7]
[357125932,1743771033495,-150.0,0.00049656,7]
[357125933,1743771033505,-173.17,0.00049707,2]
[357125934,1743771033516,-172.99347054,0.00049733,120]
[357125935,1743771033526,-191.85217095,0.00049747,25]
[357125936,1743771033535,-937.09727764,0.00049747,15]
[357125937,1743771033545,-501.58752862,0.00049799,79]
[357125938,1743771033555,-1449.38827978,0.00049835,22]
[357125939,1743771033565,-1299.79829471,0.00049836,15]
[357125940,1743771033575,-160.27219715,0.00049838,2]
[357125941,1743771033585,-4107.044,0.00049839,2]
[357125942,1743771033594,-9454.2057,0.00049848,2]
[357125943,1743771033604,-2193.6474,0.00049857,2]
[357125944,1743771033614,-455.6971,0.00049857,2]
[357125945,1743771033623,-152.29444621,0.00049859,26]
[357125946,1743771033633,-156.089004,0.00049863,120]
[357125947,1743771033646,-500.0,0.00049863,120]
[357125948,1743771033657,-597.86746555,0.00049863,120]
[357125949,1743771033667,-560.52,0.00049863,120]
[357125950,1743771033677,-500.0,0.00049863,120]
[357125951,1743771033687,-500.0,0.00049863,120]
[357125952,1743771033697,-500.0,0.00049863,120]
[357125953,1743771033707,-500.0,0.00049863,120]
[357125954,1743771033716,-500.0,0.00049863,120]
[357125955,1743771033727,-500.0,0.00049863,120]
[357125956,1743771033737,-500.0,0.00049863,120]
[357125957,1743771033747,-500.0,0.00049863,120]
[357125958,1743771033757,-500.0,0.00049863,120]
[357125959,1743771033767,-500.0,0.00049863,120]
[357125960,1743771033778,-500.0,0.00049863,120]
[357125961,1743771033788,-627.42824777,0.00049863,120]
[357125962,1743771033798,-500.0,0.00049863,120]
[357125963,1743771033808,-537.09,0.00049863,120]
[357125964,1743771033818,-500.0,0.00049863,120]
[357125965,1743771033827,-668.1,0.00049863,120]
[357125966,1743771033837,-500.0,0.00049863,120]
[357125967,1743771033847,-500.0,0.00049863,120]
[357125968,1743771033856,-500.0,0.00049863,120]
[357125969,1743771033866,-500.0,0.00049863,2]
[357125970,1743771033876,-500.0,0.00049863,2]
[357125971,1743771033886,-500.0,0.00049863,120]
[357125972,1743771033898,-184.51238135,0.0004989,38]
[357125973,1743771033907,-187.39,0.0004989,2]
[357125974,1743771033917,-150.0,0.00049895,7]
[357125975,1743771033927,-516.94265135,0.00049899,120]
[357125976,1743771033942,-512.17494429,0.00049899,120]
[357125977,1743771033959,-500.0,0.00049899,120]
[357125978,1743771033974,-409.17510062,0.00049899,120]